fUST/lending_fUST_20250530
["ID","MTS","AMOUNT","RATE_DAILY","PERIOD"]
[363008036,1748548246988,-5640.66,0.0002,2]
[363008037,1748548247001,-430.0,0.0002,2]
[363008038,1748548247015,-430.0,0.0002,2]
[363008039,1748548247029,-430.0,0.0002,2]
[363008040,1748548247044,-7027.58,0.0002,2]
[363008041,1748548247059,-430.0,0.0002,2]
[363008043,1748548247072,-1251.48,0.0002,2]
[363008045,1748548247085,-4587.33,0.0002,2]
[363008048,1748548247098,-5431.33,0.0002,2]
[363008050,1748548247111,-1129.44,0.0002,2]
[363008053,1748548247125,-1291.18,0.0002,2]
[363008055,1748548247139,-1005.30963114,0.00020021,2]
[363008058,1748548247153,-447.3515898,0.00020021,2]
[363008060,1748548247168,-1000.0,0.00020021,2]
[363008062,1748548247180,-500.0,0.00020021,2]
[363008064,1748548247193,-151.0,0.000201,4]
[363008066,1748548247203,-835.694522,0.00020187,2]
[363008069,1748548247213,-208.48728359,0.00020192,2]
[363008070,1748548247223,-500.0,0.00020192,2]
[363008073,1748548247234,-500.0,0.00020219,2]
[363008075,1748548247245,-572.078714,0.00020247,2]
[363008076,1748548247255,-572.078714,0.00020247,2]
[363008078,1748548247265,-572.078714,0.00020247,2]
[363008080,1748548247274,-572.078714,0.00020247,2]
[363008083,1748548247285,-572.078714,0.00020247,2]
[363008101,1748548247457,-514.1178007,0.00020247,2]
[363008104,1748548247478,-500.0,0.00020247,2]
[363008106,1748548247487,-430.0,0.00020273,2]
[363008109,1748548247497,-470.0,0.00020273,2]
[363008111,1748548247506,-430.0,0.00020273,2]
[363008113,1748548247515,-430.0,0.00020273,2]
[363008115,1748548247524,-430.0,0.00020273,2]
[363008117,1748548247533,-430.0,0.00020273,2]
[363008119,1748548247543,-430.0,0.00020273,2]
[363008121,1748548247552,-430.0,0.00020273,2]
[363008123,1748548247561,-430.0,0.00020273,2]
[363008125,1748548247571,-430.0,0.00020273,2]
[363008127,1748548247580,-430.0,0.00020273,2]
[363008129,1748548247596,-430.0,0.00020273,2]
[363008131,1748548247612,-357.59519392,0.00020273,2]
[363008149,1748548247778,-72.40480608,0.00020273,2]
[363008151,1748548247787,-430.0,0.00020273,2]
[363008153,1748548247797,-400.94813257,0.00020273,2]
[363008156,1748548247808,-343.97656279,0.00020273,2]
[363008181,1748548248095,-430.0,0.00019178,2]
[363008182,1748548248105,-422.97773365,0.00019178,2]
[363008183,1748548248114,-430.0,0.00019178,2]
[363008184,1748548248125,-430.0,0.00019452,2]
[363008185,1748548248134,-430.0,0.00019726,2]
[363008186,1748548248145,-160.0,0.00019953,2]
[363008187,1748548248154,-430.0,0.0002,2]
[363008188,1748548248163,-1569.51530464,0.00020273,2]
[363008189,1748548248174,-594.85,0.00020273,2]
[363008190,1748548248187,-317.48188911,0.00020273,2]
[363008191,1748548248196,-603.76,0.00020273,2]
[363008192,1748548248206,-430.0,0.00020273,2]
[363008193,1748548248216,-430.0,0.00020273,2]
[363008194,1748548248227,-430.0,0.00020273,2]
[363008195,1748548248236,-470.0,0.00020273,2]
[363008196,1748548248245,-430.0,0.00020273,2]
[363008197,1748548248255,-430.0,0.00020273,2]
[363008198,1748548248266,-771.94,0.00020273,2]
[363008199,1748548248276,-430.0,0.00020273,2]
[363008200,1748548248286,-430.0,0.00020273,2]
[363008201,1748548248299,-430.0,0.00020273,2]
[363008202,1748548248308,-182.23383948,0.00020273,2]
[363008203,1748548248318,-430.0,0.00020273,2]
[363008204,1748548248328,-480.83,0.00020273,2]
[363008205,1748548248338,-430.0,0.00020273,2]
[363008206,1748548248348,-430.0,0.00020273,2]
[363008207,1748548248359,-430.0,0.00020273,2]
[363008208,1748548248370,-430.0,0.00020273,2]
[363008209,1748548248379,-430.0,0.00020273,2]
[363008210,1748548248390,-430.0,0.00020273,2]
[363008211,1748548248399,-430.0,0.00020273,2]
[363008212,1748548248409,-411.84071174,0.00020273,2]
[363008213,1748548248419,-430.0,0.00020273,2]
[363008214,1748548248429,-430.0,0.00020273,2]
[363008215,1748548248439,-603.38,0.00020273,2]
[363008216,1748548248449,-787.4,0.00020273,2]
[363008217,1748548248458,-430.0,0.00020273,2]
[363008218,1748548248468,-479.9,0.00020273,2]
[363008219,1748548248478,-430.0,0.00020273,2]
[363008220,1748548248487,-1043.1,0.00020273,2]
[363008221,1748548248497,-430.0,0.00020273,2]
[363008222,1748548248507,-445.95,0.00020273,2]
[363008223,1748548248517,-430.0,0.00020273,2]
[363008224,1748548248526,-1129.82198584,0.00020273,2]
[363008225,1748548248554,-200.01801416,0.00020273,2]
[363008226,1748548248564,-329.2560603,0.00020273,2]
[363008227,1748548375105,150.0,0.00013855,2]
[363008228,1748548375515,150.0,0.00014515,2]
[363008229,1748548444635,150.0,0.00015773,2]
[363008230,1748548581092,150.0,0.00013779,2]
[363008231,1748548581922,150.0,0.00015092,2]
[363008232,1748548648081,150.0,0.000138,2]
[363008233,1748548648487,150.0,0.00014457,2]
[363008234,1748548648913,150.0,0.00015115,2]
[363008235,1748548649370,150.0,0.00015772,2]
[363008237,1748548781861,150.0,0.0001376,2]
[363008238,1748548986181,207.18,0.00015117,2]
[363008239,1748548986581,276.24,0.00015774,2]
[363008241,1748549059325,75.69995612,0.00015107,2]
[363008242,1748549059349,105.11004388,0.00015107,2]
[363008243,1748549059729,241.08,0.00015764,2]
[363008244,1748549103112,2099.56115889,0.00016,2]
[363008245,1748549130567,157.8,0.00015071,2]
[363008246,1748549130971,210.4,0.00015726,2]
[363008247,1748549138123,-675.88417736,0.00016267,2]
[363008248,1748549138145,-263.0,0.00016382,2]
[363008249,1748549138166,-315.6,0.00017037,2]
[363008250,1748549138186,-195.7374024,0.00017534,3]
[363008251,1748549138208,-49.17605422,0.00017692,2]
[363008252,1748549149096,-1097.31031382,0.00017515,2]
[363008254,1748549199090,793.909796,0.00013699,2]
[363008255,1748549215422,-172.46,0.00016408,2]
[363008256,1748549215448,-206.95,0.00017064,2]
[363008257,1748549215470,-92.627839,0.00017515,2]
[363008258,1748549232145,-242.67564014,0.00017515,2]
[363008259,1748549232169,-241.44,0.0001772,2]
[363008260,1748549232194,-202.4960727,0.00018177,2]
[363008261,1748549232218,-275.93,0.00018377,2]
[363008262,1748549232240,-270.319553,0.00018388,2]
[363008263,1748549232263,-411.58914022,0.000189,2]
[363008264,1748549232287,-310.42,0.00019033,2]
[363008265,1748549232309,-300.0,0.00019077,2]
[363008266,1748549232332,-416.57494449,0.00019078,2]
[363008267,1748549232354,-2677.09662355,0.00019078,2]
[363008268,1748549232375,-208.95496558,0.00019078,2]
[363008269,1748549232396,-160.0,0.00019162,2]
[363008270,1748549232418,-5655.11392042,0.00019163,2]
[363008271,1748549241089,-1536.9927599,0.00019163,2]
[363008273,1748549252085,-916.81049709,0.00019163,2]
[363008275,1748549335959,183.34,0.000151,2]
[363008276,1748549336315,244.46,0.00015756,2]
[363008277,1748549345088,-305.57,0.00016413,2]
[363008278,1748549345110,-330.26099197,0.00017069,2]
[363008279,1748549349145,-36.42900803,0.00017069,2]
[363008280,1748549349168,-427.8,0.00017726,2]
[363008281,1748549356121,-421.4,0.00018382,2]
[363008284,1748549387403,175.0,0.00016438,3]
[363008288,1748549411747,154.04,0.00017064,2]
[363008289,1748549412188,179.71,0.00017721,2]
[363008327,1748549431779,-205.39,0.00018377,2]
[363008328,1748549431789,-274.39276015,0.000189,2]
[363008330,1748549431799,-231.06,0.00019033,2]
[363008331,1748549431808,-300.0,0.00019166,2]
[363008332,1748549431818,-1200.0,0.00019166,2]
[363008333,1748549431827,-160.0,0.00019167,2]
[363008334,1748549431836,-300.0,0.00019167,2]
[363008335,1748549431846,-300.0,0.00019167,2]
[363008336,1748549431857,-765.73,0.00019168,3]
[363008337,1748549431869,-382.86,0.00019168,3]
[363008338,1748549431878,-191.43,0.00019168,3]
[363008339,1748549431888,-574.32,0.00019168,3]
[363008340,1748549431897,-500.0,0.00019173,2]
[363008341,1748549431907,-500.0,0.00019173,2]
[363008342,1748549431917,-339.51470512,0.00019173,2]
[363008344,1748549431926,-217.62625734,0.00019176,2]
[363008346,1748549431936,-500.0,0.00019176,2]
[363008348,1748549431946,-500.0,0.00019176,2]
[363008349,1748549431956,-500.0,0.00019176,2]
[363008350,1748549431966,-555.72473826,0.00019176,2]
[363008351,1748549431976,-500.0,0.00019176,2]
[363008352,1748549431985,-500.0,0.00019176,2]
[363008353,1748549431994,-500.0,0.00019176,2]
[363008354,1748549432004,-358.03268915,0.00019176,2]
[363008355,1748549432013,-500.0,0.00019177,2]
[363008356,1748549432023,-151.0,0.00019177,2]
[363008357,1748549432033,-500.0,0.00019177,2]
[363008358,1748549432042,-500.0,0.00019177,2]
[363008359,1748549432052,-500.0,0.00019177,2]
[363008360,1748549432062,-500.0,0.00019177,2]
[363008361,1748549432072,-500.0,0.00019177,2]
[363008362,1748549432082,-500.0,0.00019177,2]
[363008363,1748549432092,-200.98057969,0.00019177,2]
[363008364,1748549432103,-500.0,0.00019177,2]
[363008365,1748549432113,-533.29363464,0.00019177,2]
[363008366,1748549432129,-500.0,0.00019177,2]
[363008367,1748549432139,-500.0,0.00019177,2]
[363008368,1748549432149,-500.0,0.00019177,2]
[363008369,1748549432158,-500.0,0.00019177,2]
[363008370,1748549432169,-500.0,0.00019177,2]
[363008371,1748549432179,-500.0,0.00019177,2]
[363008372,1748549432190,-500.0,0.00019177,2]
[363008373,1748549432200,-500.0,0.00019177,2]
[363008374,1748549432210,-500.0,0.00019177,2]
[363008375,1748549432220,-500.0,0.00019177,2]
[363008376,1748549432229,-500.0,0.00019177,2]
[363008377,1748549432239,-500.0,0.00019177,2]
[363008378,1748549432248,-500.0,0.00019177,2]
[363008379,1748549432259,-500.0,0.00019177,2]
[363008380,1748549432269,-485.25941544,0.00019177,2]
[363008381,1748549432279,-500.0,0.00019177,2]
[363008382,1748549432289,-593.22510491,0.00019177,2]
[363008383,1748549432299,-593.22510491,0.00019177,2]
[363008384,1748549432309,-593.22510491,0.00019177,2]
[363008385,1748549432319,-593.22510491,0.00019177,2]
[363008386,1748549432330,-593.22510491,0.00019177,2]
[363008387,1748549432339,-593.22510491,0.00019177,2]
[363008388,1748549432349,-593.22510491,0.00019177,2]
[363008389,1748549432359,-593.22510491,0.00019177,2]
[363008390,1748549432371,-593.22510491,0.00019177,2]
[363008391,1748549432381,-593.22510491,0.00019177,2]
[363008392,1748549432391,-593.22510491,0.00019177,2]
[363008393,1748549432401,-693.45969165,0.00019177,2]
[363008394,1748549432411,-430.37460815,0.00019178,2]
[363008395,1748549432420,-542.88019991,0.00019178,2]
[363008396,1748549432430,-430.0,0.00019178,2]
[363008397,1748549432440,-430.0,0.00019178,2]
[363008398,1748549432450,-430.0,0.00019178,2]
[363008399,1748549432459,-430.0,0.00019178,2]
[363008400,1748549432469,-430.0,0.00019178,2]
[363008401,1748549432478,-430.0,0.00019178,2]
[363008402,1748549432488,-430.0,0.00019178,2]
[363008403,1748549432497,-430.0,0.00019178,2]
[363008404,1748549432507,-430.0,0.00019178,2]
[363008405,1748549432517,-481.03416104,0.00019178,2]
[363008406,1748549432526,-500.0,0.00019178,2]
[363008407,1748549432536,-483.66623538,0.00019178,2]
[363008408,1748549432546,-500.0,0.00019178,2]
[363008409,1748549432555,-500.0,0.00019178,2]
[363008410,1748549432565,-500.0,0.00019178,2]
[363008411,1748549432574,-430.0,0.00019178,2]
[363008412,1748549432584,-430.0,0.00019178,2]
[363008413,1748549432594,-430.0,0.00019178,2]
[363008414,1748549432607,-430.0,0.00019178,2]
[363008415,1748549432618,-430.0,0.00019178,2]
[363008416,1748549432628,-430.0,0.00019178,2]
[363008417,1748549432638,-470.0,0.00019178,2]
[363008418,1748549432648,-430.0,0.00019178,2]
[363008419,1748549432657,-430.0,0.00019178,2]
[363008420,1748549432667,-450.0,0.00019178,2]
[363008421,1748549432676,-390.10536947,0.00019178,2]
[363008422,1748549432686,-430.0,0.00019178,2]
[363008423,1748549432696,-430.0,0.00019178,2]
[363008424,1748549432705,-430.0,0.00019178,2]
[363008425,1748549432714,-430.0,0.00019178,2]
[363008426,1748549432724,-430.0,0.00019178,2]
[363008427,1748549432733,-430.0,0.00019178,2]
[363008428,1748549432742,-1000.0,0.00019178,2]
[363008429,1748549432752,-400.0,0.00019178,2]
[363008430,1748549432761,-430.0,0.00019178,2]
[363008431,1748549432771,-430.0,0.00019178,2]
[363008432,1748549432780,-430.0,0.00019178,2]
[363008433,1748549432790,-430.0,0.00019178,2]
[363008434,1748549432799,-430.0,0.00019178,2]
[363008435,1748549432809,-430.0,0.00019178,2]
[363008436,1748549432819,-430.0,0.00019178,2]
[363008437,1748549432828,-430.0,0.00019178,2]
[363008438,1748549432838,-430.0,0.00019178,2]
[363008439,1748549432847,-430.0,0.00019178,2]
[363008440,1748549432856,-430.0,0.00019178,2]
[363008441,1748549432866,-430.0,0.00019178,2]
[363008442,1748549432875,-430.0,0.00019178,2]
[363008443,1748549432884,-450.0,0.00019178,2]
[363008444,1748549432894,-430.0,0.00019178,2]
[363008445,1748549432903,-450.47537276,0.00019178,2]
[363008446,1748549432911,-430.0,0.00019178,2]
[363008447,1748549432921,-430.0,0.00019178,2]
[363008448,1748549432930,-352.03157661,0.00019178,2]
[363008449,1748549432939,-430.0,0.00019178,2]
[363008450,1748549432948,-430.0,0.00019178,2]
[363008451,1748549432956,-430.0,0.00019178,2]
[363008452,1748549432966,-430.0,0.00019178,2]
[363008453,1748549432975,-430.0,0.00019178,2]
[363008454,1748549432983,-430.0,0.00019178,2]
[363008455,1748549432992,-430.0,0.00019178,2]
[363008456,1748549433001,-430.0,0.00019178,2]
[363008457,1748549433009,-430.0,0.00019178,2]
[363008458,1748549433019,-430.0,0.00019178,2]
[363008459,1748549433029,-430.0,0.00019178,2]
[363008460,1748549433038,-430.0,0.00019178,2]
[363008461,1748549433047,-430.0,0.00019178,2]
[363008462,1748549433057,-430.0,0.00019178,2]
[363008463,1748549433067,-430.0,0.00019178,2]
[363008464,1748549433076,-430.0,0.00019178,2]
[363008465,1748549433086,-430.0,0.00019178,2]
[363008466,1748549433095,-430.0,0.00019178,2]
[363008467,1748549433104,-430.0,0.00019178,2]
[363008468,1748549433113,-430.0,0.00019178,2]
[363008469,1748549433124,-362.14188417,0.00019178,2]
[363008470,1748549433133,-430.0,0.00019178,2]
[363008471,1748549433143,-430.0,0.00019178,2]
[363008472,1748549433153,-205.68766391,0.00019178,2]
[363008473,1748549433162,-430.0,0.00019178,2]
[363008474,1748549433172,-534.93379259,0.00019178,2]
[363008475,1748549433183,-430.0,0.00019178,2]
[363008476,1748549433193,-430.0,0.00019178,2]
[363008477,1748549433203,-430.0,0.00019178,2]
[363008478,1748549433213,-430.0,0.00019178,2]
[363008479,1748549433223,-430.0,0.00019178,2]
[363008480,1748549433232,-430.0,0.00019178,2]
[363008481,1748549433242,-430.0,0.00019178,2]
[363008482,1748549433252,-420.0,0.00019178,2]
[363008483,1748549433261,-430.0,0.00019178,2]
[363008484,1748549433271,-430.0,0.00019178,2]
[363008485,1748549433281,-430.0,0.00019178,2]
[363008486,1748549433291,-430.0,0.00019178,2]
[363008487,1748549433300,-430.0,0.00019178,2]
[363008488,1748549433310,-430.0,0.00019178,2]
[363008489,1748549433319,-514.96000003,0.00019178,2]
[363008490,1748549433328,-430.0,0.00019178,2]
[363008491,1748549433338,-392.09741395,0.00019178,2]
[363008492,1748549433348,-430.0,0.00019178,2]
[363008493,1748549433357,-1140.85627546,0.00019178,2]
[363008494,1748549433500,-430.0,0.00019178,2]
[363008495,1748549433510,-430.0,0.00019178,2]
[363008496,1748549433519,-311.57254614,0.00019178,2]
[363008497,1748549433528,-414.96500573,0.00019178,2]
[363008498,1748549433538,-450.0,0.00019178,2]
[363008499,1748549433548,-450.0,0.00019178,2]
[363008500,1748549433558,-430.0,0.00019178,2]
[363008501,1748549433567,-430.0,0.00019178,2]
[363008502,1748549433577,-430.0,0.00019178,2]
[363008503,1748549433587,-430.0,0.00019178,2]
[363008504,1748549433598,-430.0,0.00019178,2]
[363008505,1748549433611,-430.0,0.00019178,2]
[363008506,1748549433622,-430.0,0.00019178,2]
[363008507,1748549433632,-430.0,0.00019178,2]
[363008508,1748549433643,-430.0,0.00019178,2]
[363008509,1748549433653,-430.0,0.00019178,2]
[363008510,1748549433663,-430.0,0.00019178,2]
[363008511,1748549433673,-430.0,0.00019178,2]
[363008512,1748549433686,-430.0,0.00019178,2]
[363008513,1748549433696,-430.0,0.00019178,2]
[363008514,1748549433705,-430.0,0.00019178,2]
[363008515,1748549433715,-430.0,0.00019178,2]
[363008516,1748549433724,-430.0,0.00019178,2]
[363008517,1748549433734,-430.0,0.00019178,2]
[363008518,1748549433744,-430.0,0.00019178,2]
[363008519,1748549433753,-430.0,0.00019178,2]
[363008520,1748549433764,-470.0,0.00019178,2]
[363008521,1748549433774,-430.0,0.00019178,2]
[363008522,1748549433784,-430.0,0.00019178,2]
[363008523,1748549433794,-430.0,0.00019178,2]
[363008524,1748549433804,-430.0,0.00019178,2]
[363008525,1748549433814,-430.0,0.00019178,2]
[363008526,1748549433824,-430.0,0.00019178,2]
[363008527,1748549433833,-430.0,0.00019178,2]
[363008528,1748549433843,-450.0,0.00019178,2]
[363008529,1748549433852,-430.0,0.00019178,2]
[363008530,1748549433861,-430.0,0.00019178,2]
[363008531,1748549433872,-430.0,0.00019178,2]
[363008532,1748549433881,-430.0,0.00019178,2]
[363008533,1748549433891,-430.0,0.00019178,2]
[363008534,1748549433901,-430.0,0.00019178,2]
[363008535,1748549433911,-430.0,0.00019178,2]
[363008536,1748549433921,-401.26771658,0.00019178,2]
[363008537,1748549433930,-511.29,0.00019178,2]
[363008538,1748549433940,-305.53511976,0.00019178,2]
[363008539,1748549433950,-430.0,0.00019178,2]
[363008540,1748549433961,-407.06495353,0.00019178,2]
[363008541,1748549433971,-430.0,0.00019178,2]
[363008542,1748549433981,-430.0,0.00019178,2]
[363008543,1748549433990,-430.0,0.00019178,2]
[363008544,1748549434000,-430.0,0.00019178,2]
[363008545,1748549434011,-430.0,0.00019178,2]
[363008546,1748549434021,-430.0,0.00019178,2]
[363008547,1748549434031,-430.0,0.00019178,2]
[363008548,1748549434041,-430.0,0.00019178,2]
[363008549,1748549434051,-430.0,0.00019178,2]
[363008550,1748549434061,-430.0,0.00019178,2]
[363008551,1748549434071,-430.0,0.00019178,2]
[363008552,1748549434081,-430.0,0.00019178,2]
[363008553,1748549434091,-430.0,0.00019178,2]
[363008554,1748549434100,-430.0,0.00019178,2]
[363008555,1748549434110,-430.0,0.00019178,2]
[363008556,1748549434121,-256.52594672,0.00019178,2]
[363008557,1748549434131,-458.85883292,0.00019178,2]
[363008558,1748549434141,-470.0,0.00019178,2]
[363008559,1748549434151,-430.0,0.00019178,2]
[363008560,1748549434161,-430.0,0.00019178,2]
[363008561,1748549434172,-430.0,0.00019178,2]
[363008562,1748549434181,-310.54718042,0.00019178,2]
[363008563,1748549434191,-430.0,0.00019178,2]
[363008564,1748549434201,-288.26323732,0.00019178,2]
[363008565,1748549434211,-2547.3,0.00019178,2]
[363008566,1748549434221,-430.0,0.00019178,2]
[363008567,1748549434231,-387.6527554,0.00019178,2]
[363008568,1748549434241,-430.0,0.00019178,2]
[363008569,1748549434250,-235.62116323,0.00019178,2]
[363008570,1748549434260,-430.0,0.00019178,2]
[363008571,1748549434270,-430.0,0.00019178,2]
[363008572,1748549434280,-430.0,0.00019178,2]
[363008573,1748549434290,-430.0,0.00019178,2]
[363008574,1748549434299,-430.0,0.00019178,2]
[363008575,1748549434309,-631.19,0.00019178,2]
[363008576,1748549434319,-300.0,0.00019178,2]
[363008577,1748549434329,-430.0,0.00019178,2]
[363008578,1748549434339,-535.98886449,0.00019178,2]
[363008579,1748549434349,-430.0,0.00019178,2]
[363008580,1748549434359,-430.0,0.00019178,2]
[363008581,1748549434370,-430.0,0.00019178,2]
[363008582,1748549434379,-430.0,0.00019178,2]
[363008583,1748549434388,-1493.21,0.00019178,2]
[363008584,1748549434397,-430.0,0.00019178,2]
[363008585,1748549434406,-430.0,0.00019178,2]
[363008586,1748549434416,-430.0,0.00019178,2]
[363008587,1748549434425,-430.0,0.00019178,2]
[363008588,1748549434434,-430.0,0.00019178,2]
[363008589,1748549434443,-430.0,0.00019178,2]
[363008590,1748549434453,-430.0,0.00019178,2]
[363008591,1748549434462,-430.0,0.00019178,2]
[363008592,1748549434472,-430.0,0.00019178,2]
[363008593,1748549434481,-323.05217977,0.00019178,2]
[363008594,1748549434491,-450.0,0.00019178,2]
[363008595,1748549434500,-430.0,0.00019178,2]
[363008596,1748549434510,-430.0,0.00019178,2]
[363008597,1748549434519,-430.0,0.00019178,2]
[363008598,1748549434529,-430.0,0.00019178,2]
[363008599,1748549434539,-450.0,0.00019178,2]
[363008600,1748549434548,-430.0,0.00019178,2]
[363008601,1748549434557,-430.0,0.00019178,2]
[363008602,1748549434567,-430.0,0.00019178,2]
[363008603,1748549434577,-430.0,0.00019178,2]
[363008604,1748549434587,-430.0,0.00019178,2]
[363008605,1748549434597,-657.73,0.00019178,2]
[363008606,1748549434612,-550.0,0.00019178,2]
[363008607,1748549434623,-430.0,0.00019178,2]
[363008608,1748549434632,-430.0,0.00019178,2]
[363008609,1748549434642,-430.0,0.00019178,2]
[363008610,1748549434653,-430.0,0.00019178,2]
[363008611,1748549434663,-430.0,0.00019178,2]
[363008612,1748549434672,-430.0,0.00019178,2]
[363008613,1748549434682,-304.21445751,0.00019178,2]
[363008614,1748549434691,-430.0,0.00019178,2]
[363008615,1748549434701,-430.0,0.00019178,2]
[363008616,1748549434710,-328.87543579,0.00019178,2]
[363008617,1748549434720,-182.44597801,0.00019178,2]
[363008618,1748549434729,-430.0,0.00019178,2]
[363008619,1748549434739,-403.77170141,0.00019178,2]
[363008620,1748549434747,-438.63360321,0.00019178,2]
[363008621,1748549434756,-450.0,0.00019178,2]
[363008622,1748549434765,-430.0,0.00019178,2]
[363008623,1748549434775,-406.25534552,0.00019178,2]
[363008624,1748549434785,-430.0,0.00019178,2]
[363008625,1748549434794,-430.0,0.00019178,2]
[363008626,1748549434804,-430.0,0.00019178,2]
[363008627,1748549434813,-430.0,0.00019178,2]
[363008628,1748549434822,-430.0,0.00019178,2]
[363008629,1748549434832,-450.0,0.00019178,2]
[363008630,1748549434842,-173.04501489,0.00019178,2]
[363008631,1748549434851,-341.65385455,0.00019178,2]
[363008632,1748549434860,-430.0,0.00019178,2]
[363008633,1748549434871,-430.0,0.00019178,2]
[363008634,1748549434881,-432.19620842,0.00019178,2]
[363008635,1748549434890,-430.0,0.00019178,2]
[363008636,1748549434900,-430.0,0.00019178,2]
[363008637,1748549434909,-430.0,0.00019178,2]
[363008638,1748549434918,-359.40216688,0.00019178,2]
[363008639,1748549434927,-430.0,0.00019178,2]
[363008640,1748549434937,-471.32906541,0.00019178,2]
[363008641,1748549434947,-430.0,0.00019178,2]
[363008642,1748549434956,-300.0,0.00019178,2]
[363008643,1748549434965,-306.33163135,0.00019178,2]
[363008644,1748549434974,-301.59274398,0.00019178,2]
[363008645,1748549434984,-430.0,0.00019178,2]
[363008646,1748549434993,-450.0,0.00019178,2]
[363008647,1748549435003,-430.0,0.00019178,2]
[363008648,1748549435012,-400.0,0.00019178,2]
[363008649,1748549435022,-1289.81,0.00019178,2]
[363008650,1748549435033,-332.72611491,0.00019178,2]
[363008651,1748549435043,-400.0,0.00019178,2]
[363008652,1748549435052,-430.0,0.00019178,2]
[363008653,1748549435062,-430.0,0.00019178,2]
[363008654,1748549435071,-430.0,0.00019178,2]
[363008655,1748549435081,-430.0,0.00019178,2]
[363008656,1748549435090,-490.0,0.00019178,2]
[363008657,1748549435099,-490.0,0.00019178,2]
[363008658,1748549435109,-430.0,0.00019178,2]
[363008659,1748549435120,-430.0,0.00019178,2]
[363008660,1748549435129,-450.0,0.00019178,2]
[363008661,1748549435139,-430.0,0.00019178,2]
[363008662,1748549435148,-430.0,0.00019178,2]
[363008663,1748549435158,-268.05998819,0.00019178,2]
[363008664,1748549435167,-450.0,0.00019178,2]
[363008665,1748549435176,-1598.38,0.00019178,2]
[363008666,1748549435186,-490.0,0.00019178,2]
[363008667,1748549435195,-430.0,0.00019178,2]
[363008668,1748549435204,-430.0,0.00019178,2]
[363008669,1748549435214,-430.0,0.00019178,2]
[363008670,1748549435223,-547.602809,0.00019178,2]
[363008671,1748549435233,-430.0,0.00019178,2]
[363008672,1748549435242,-2053.27,0.00019178,2]
[363008673,1748549435251,-430.0,0.00019178,2]
[363008674,1748549435261,-400.0,0.00019178,2]
[363008675,1748549435270,-430.0,0.00019178,2]
[363008676,1748549435280,-430.0,0.00019178,2]
[363008677,1748549435289,-1525.7,0.00019178,2]
[363008678,1748549435298,-520.70669063,0.00019178,2]
[363008679,1748549435307,-430.0,0.00019178,2]
[363008680,1748549435317,-450.0,0.00019178,2]
[363008681,1748549435326,-430.0,0.00019178,2]
[363008682,1748549435336,-566.83,0.00019178,2]
[363008683,1748549435345,-430.0,0.00019178,2]
[363008684,1748549435355,-430.0,0.00019178,2]
[363008685,1748549435364,-430.0,0.00019178,2]
[363008686,1748549435374,-430.0,0.00019178,2]
[363008687,1748549435384,-430.0,0.00019178,2]